bitfinex/quotes_SOLUSD_20240808
["timestamp","ask_amount","ask_price","bid_price","bid_amount"]
[1723118875035,45.34,154.34,154.27,20.0]
[1723118875236,45.34,154.34,154.27,30.15380855]
[1723118875643,28.22,154.33,154.27,20.0]
[1723118875863,46.96055413,154.32,154.24,0.05501192]
[1723118876155,46.96055413,154.32,154.25,10.15449152]
[1723118876862,28.22,154.31,154.25,10.15449152]
[1723118877166,0.17,154.3,154.25,10.15449152]
[1723118877347,29.84057771,154.31,154.26,20.0]
[1723118877553,0.34,154.3,154.26,20.0]
[1723118877753,28.22,154.29,154.24,0.05501192]
[1723118877945,0.17,154.28,154.21,43.060764]
[1723118878430,0.34,154.28,154.21,43.060764]
[1723118879262,28.22,154.31,154.21,44.35746741]
[1723118879454,0.34,154.3,154.22,20.0]
[1723118879656,45.34,154.3,154.22,20.0]
[1723118879867,28.22,154.29,154.22,20.0]
[1723118880039,28.22,154.29,154.21,11.003964]
[1723118880040,46.96104281,154.28,154.21,11.003964]
[1723118880236,28.22,154.27,154.21,11.003964]
[1723118880471,0.34,154.26,154.21,11.003964]
[1723118880757,30.6967,154.26,154.21,11.003964]
[1723118881460,0.17,154.26,154.21,11.003964]
[1723118881758,0.34,154.27,154.21,11.003964]
[1723118881964,0.34,154.26,154.21,11.003964]
[1723118882167,0.17,154.27,154.22,20.0]
[1723118882349,0.34,154.28,154.22,20.0]
[1723118882548,45.34,154.28,154.22,20.0]
[1723118882748,0.34,154.28,154.22,20.0]
[1723118883944,28.22,154.27,154.22,20.0]
[1723118884284,45.34,154.26,154.21,11.003964]
[1723118884445,0.34,154.26,154.21,11.003964]
[1723118887073,0.34,154.26,154.21,0.8464594]
[1723118887074,28.22,154.25,154.21,0.8464594]
[1723118887446,0.34,154.26,154.21,0.8464594]
[1723118887753,45.34,154.26,154.21,0.8464594]
[1723118888860,28.22,154.25,154.21,0.8464594]
[1723118889055,45.34,154.24,154.21,0.8464594]
[1723118889755,31.884,154.22,154.21,0.8464594]
[1723118889960,77.054,154.22,154.21,0.8464594]
[1723118890158,77.224,154.22,154.12,10.16414219]
[1723118890345,28.22,154.19,154.12,10.16414219]
[1723118890543,0.34,154.18,154.12,10.16414219]
[1723118891051,29.84194689,154.17,154.07,6.73562061]
[1723118891355,0.34,154.16,154.08,10.16620389]
[1723118891557,45.34,154.16,154.08,10.16620389]
[1723118891863,0.17,154.16,154.08,10.16620389]
[1723118892041,40.2824,154.17,154.08,10.16620389]
[1723118892355,45.34,154.16,154.08,10.16620389]
[1723118892754,1.62220048,154.15,154.09,20.0]
[1723118892945,45.34,154.16,154.09,20.0]
[1723118893146,13.94630954,154.21,154.09,48.22]
[1723118893343,45.34,154.2,154.1,1.29757647]
[1723118894654,45.0047,154.26,154.13,28.22]
[1723118894971,28.22,154.22,154.14,20.0]
[1723118895296,28.22,154.2,154.11,13.1544]
[1723118895446,28.22,154.2,154.12,20.0]
[1723118895666,32.4224,154.19,154.12,20.0]
[1723118895883,45.4784,154.19,154.08,41.24980389]
[1723118896381,45.34,154.18,154.08,41.24980389]
[1723118897382,45.34,154.18,154.09,20.0]
[1723118897887,1.62235139,154.17,154.09,20.0]
[1723118898182,0.34,154.16,154.09,20.0]
[1723118898388,1.62242884,154.15,154.08,10.16620389]
[1723118898696,1.96243451,154.14,154.08,10.16620389]
[1723118898980,0.34,154.13,154.08,10.16620389]
[1723118899356,1.96243315,154.13,154.08,10.16620389]
[1723118899681,0.34,154.13,154.05,11.01313924]
[1723118900185,0.34,154.14,154.05,11.01313924]
[1723118900478,1.62266513,154.13,154.05,11.01313924]
[1723118900666,0.34,154.12,154.05,11.01313924]
[1723118901074,32.5492,154.11,154.05,11.01313924]
[1723118901274,0.17,154.1,154.06,20.0]
[1723118901989,0.34,154.1,154.06,20.0]
[1723118903076,45.34,154.1,154.05,11.01313924]
[1723118903287,45.0,154.09,154.05,11.01313924]
[1723118903476,0.34,154.08,154.05,11.01313924]
[1723118903787,0.17,154.08,154.05,11.01313924]
[1723118904081,0.17,154.08,154.05,0.8464594]
[1723118904679,0.17,154.09,154.05,0.8464594]
[1723118904882,45.0,154.1,154.05,0.8464594]
[1723118905074,32.5492,154.11,154.05,0.8464594]
[1723118906490,0.34,154.1,154.05,0.8464594]
[1723118906805,45.34,154.1,154.05,0.8464594]
[1723118909202,46.96302715,154.1,154.05,0.8464594]
[1723118909488,32.7095,154.15,154.05,0.8464594]
[1723118911287,0.17,154.14,154.05,0.8464594]
[1723118912271,45.17,154.14,154.05,0.8464594]
[1723118912470,0.17,154.13,154.05,20.8464594]
[1723118914788,45.17,154.14,154.05,20.8464594]
[1723118914789,0.17,154.14,154.05,20.8464594]
[1723118916372,45.34,154.14,154.05,20.8464594]
[1723118916798,46.96258561,154.14,154.05,20.8464594]
[1723118917366,45.34,154.14,154.05,20.8464594]
[1723118917663,28.34,154.12,154.05,20.8464594]
[1723118917869,45.34,154.11,154.05,20.8464594]
[1723118918295,28.34,154.1,154.05,0.8464594]
[1723118918468,45.34,154.09,154.05,0.8464594]
[1723118919297,28.34,154.08,154.05,0.8464594]
[1723118919465,45.34,154.07,154.05,0.8464594]
[1723118921168,28.34,154.06,154.05,0.8464594]
[1723118921492,73.68,154.06,154.05,0.8464594]
[1723118923771,75.30353806,154.06,154.05,0.8464594]
[1723118924096,75.30353806,154.06,153.96,30.5073]
[1723118924097,105.443,154.06,153.96,30.5073]
[1723118924266,46.96374451,154.05,153.96,30.5073]
[1723118924467,45.34,154.05,153.96,30.5073]
[1723118924699,73.68,154.05,153.96,30.5073]
[1723118924875,45.34,154.05,153.96,31.80602877]
[1723118925193,0.34,154.05,153.96,31.80602877]
[1723118925379,45.0,154.04,153.96,30.5073]
[1723118925586,0.34,154.03,153.97,20.0]
[1723118925777,0.34,154.05,153.97,20.0]
[1723118926590,0.34,154.05,153.96,30.5073]
[1723118926783,28.68,154.05,153.96,30.5073]
[1723118926984,45.0,154.04,153.96,30.5073]
[1723118927172,0.34,154.03,153.96,30.5073]
[1723118928101,0.34,154.03,153.97,20.0]
[1723118930881,28.68,154.03,153.97,20.0]
[1723118931070,45.0,154.02,153.97,20.0]
[1723118931277,0.17,154.01,153.97,20.0]
[1723118931499,0.34,154.01,153.97,20.0]
[1723118931812,28.34,154.07,153.97,21.29893366]
[1723118931976,28.34,154.07,153.97,20.0]
[1723118932375,29.96325416,154.07,153.97,20.0]
[1723118932592,28.34,154.07,153.97,20.0]
[1723118933311,45.0,154.06,153.97,20.0]
[1723118933527,0.17,154.05,153.97,20.0]
[1723118934285,0.17,154.05,153.97,21.29874318]
[1723118934501,0.17,154.05,153.97,20.0]
[1723118936193,28.51,154.05,153.97,20.0]
[1723118936410,28.34,154.03,153.97,20.0]
[1723118936585,0.34,154.02,153.97,20.0]
[1723118937016,0.34,154.02,153.96,30.5073]
[1723118937391,28.34,154.05,153.96,30.5073]
[1723118937591,0.34,154.04,153.96,31.80602605]
[1723118937924,28.34,154.07,153.96,30.5073]
[1723118938212,28.34,154.05,153.97,20.0]
[1723118938417,0.17,154.04,153.97,20.0]
[1723118938618,28.34,154.05,153.97,20.0]
[1723118938916,0.17,154.04,153.97,20.0]
[1723118939094,0.34,154.04,153.97,20.0]
[1723118939797,45.34,154.04,153.97,20.0]
[1723118940514,0.34,154.04,153.97,20.0]
[1723118940700,28.34,154.05,153.97,20.0]
[1723118941422,28.34,154.07,153.97,20.0]
[1723118941591,306.3854,154.14,154.0,28.34]
[1723118941796,28.34,154.12,154.01,20.0]
[1723118942396,28.34,154.14,154.03,42.4399]
[1723118942612,28.34,154.14,154.04,20.0]
[1723118942818,28.34,154.18,154.06,28.34]
[1723118943019,28.34,154.18,154.08,32.7992]
[1723118943225,28.34,154.2,154.09,20.0]
[1723118943389,28.34,154.2,154.1,12.5533]
[1723118943598,28.34,154.22,154.11,21.29740064]
[1723118943819,28.34,154.24,154.12,28.34]
[1723118943990,28.34,154.26,154.14,28.34]
[1723118944193,45.7517,154.31,154.18,28.34]
[1723118944418,3.37228464,154.4,154.15,64.42551061]
[1723118944419,28.34,154.33,154.2,40.9809]
[1723118944628,273.9573,154.37,154.22,28.34]
[1723118944629,13.2573,154.37,154.22,28.34]
[1723118944920,13.2573,154.37,154.21,99.16344522]
[1723118944921,28.34,154.33,154.23,20.0]
[1723118945123,28.34,154.33,154.21,52.6972]
[1723118945718,19.7352,154.37,154.21,52.6972]
[1723118945719,13.2573,154.37,154.21,53.99363951]
[1723118946013,403.5064594,154.44,154.21,53.99363951]
[1723118946014,50.24807868,154.42,154.22,65.34]
[1723118946210,56.72397868,154.42,154.23,21.29596609]
[1723118946423,56.72397868,154.42,154.24,46.63599117]
[1723118946591,50.24807868,154.42,154.25,20.0]
[1723118947211,37.95027868,154.42,154.26,12.824]
[1723118947415,37.95027868,154.42,154.27,20.0]
[1723118947921,6.4774,154.39,154.27,20.0]
[1723118948134,36.33,154.42,154.27,20.0]
[1723118948309,42.8059,154.42,154.27,20.0]
[1723118948497,1.62007969,154.41,154.27,20.0]
[1723118949617,6.4767,154.4,154.27,20.0]
[1723118949803,1.62018091,154.39,154.27,20.0]
[1723118950522,0.34,154.38,154.27,20.0]
[1723118950730,1.62023944,154.37,154.27,20.0]
[1723118950908,0.34,154.36,154.27,20.0]
[1723118951228,1.96025686,154.36,154.27,20.0]
[1723118952304,0.34,154.36,154.27,20.0]
[1723118952508,0.17,154.35,154.27,20.0]
[1723118952804,1.46024615,154.35,154.27,20.0]
[1723118953321,1.46024615,154.35,154.26,12.824]
[1723118953527,52.93904615,154.35,154.26,12.824]
[1723118953828,52.93904615,154.35,154.22,13.3239]
[1723118953829,36.33,154.33,154.22,13.3239]
[1723118954001,46.46074867,154.32,154.22,13.3239]
[1723118954903,0.17,154.31,154.22,13.3239]
[1723118955102,1.79090583,154.31,154.22,13.3239]
[1723118955422,0.17,154.3,154.22,13.3239]
[1723118955834,1.79105963,154.3,154.17,12.9124369]
[1723118956040,0.17,154.29,154.17,12.8574]
[1723118956336,45.17,154.29,154.17,12.8574]
[1723118956534,0.17,154.28,154.17,12.8574]
[1723118957316,0.17,154.28,154.18,20.0]
[1723118958712,0.17,154.28,154.17,12.8574]
[1723118958917,48.915,154.27,154.12,42.9969]
[1723118959126,12.585,154.27,154.12,44.29398631]
[1723118959365,45.34,154.26,154.12,42.9969]
[1723118959543,1.62133446,154.25,154.12,42.9969]
[1723118959750,0.34,154.24,154.12,42.9969]
[1723118959918,45.34,154.24,154.12,42.9969]
[1723118960320,1.62170772,154.23,154.12,42.9969]
[1723118960525,0.34,154.22,154.12,42.9969]
[1723118961338,1.961835,154.22,154.12,42.9969]
[1723118961833,46.961835,154.22,154.12,42.9969]
[1723118962242,46.961835,154.22,154.13,20.0]
[1723118962763,53.446135,154.22,154.08,12.1132]
[1723118962948,83.291835,154.22,154.08,12.1132]
[1723118963739,1.621835,154.22,154.09,45.0]
[1723118963921,1.62171658,154.21,154.08,12.1132]
[1723118964122,33.64241958,154.23,154.08,12.1132]
[1723118964374,36.33,154.22,154.08,12.1132]
[1723118964530,36.33,154.22,154.09,1.29754303]
[1723118965038,0.17,154.21,154.09,1.29754303]
[1723118965246,45.34,154.22,154.08,13.41056086]
[1723118965940,45.34,154.22,154.09,20.0]
[1723118966118,1.62195924,154.21,154.09,20.0]
[1723118966318,0.34,154.2,154.09,20.0]
[1723118966717,1.96195777,154.2,154.09,20.0]
[1723118966921,8.44695777,154.2,154.08,12.1132]
[1723118967141,45.0,154.19,154.08,12.1132]
[1723118967320,0.34,154.18,154.09,1.29756156]
[1723118967519,0.17,154.17,154.08,12.1132]
[1723118967725,0.17,154.18,154.08,12.1132]
[1723118968328,0.17,154.18,154.09,20.0]
[1723118968527,46.96216488,154.18,154.09,20.0]
[1723118968725,51.4864,154.17,154.04,12.33228335]
[1723118968923,1.96248124,154.16,154.04,12.33228335]
[1723118969427,0.34,154.16,154.04,12.33228335]
[1723118969947,1.62240706,154.15,154.04,12.33228335]
[1723118970253,0.34,154.14,154.05,20.0]
[1723118970446,0.17,154.13,154.05,21.29796667]
[1723118970665,12.5316,154.18,154.05,21.29796667]
[1723118971179,12.5316,154.18,154.06,45.17]
[1723118971348,267.1842,154.22,154.06,45.17]
[1723118971349,272.8209,154.22,154.07,21.29759401]
[1723118971870,1.62183132,154.21,154.07,20.0]
[1723118972054,8.1066932,154.21,154.05,21.29759456]
[1723118972361,1.62200448,154.2,154.05,21.29759456]
[1723118972562,8.10751206,154.2,154.05,20.0]
[1723118972866,8.10751206,154.2,154.05,21.2977535]
[1723118973074,1.62219188,154.2,154.05,20.0]
[1723118973248,0.17,154.19,154.05,20.0]
[1723118973448,0.34,154.19,154.05,20.0]
[1723118974575,0.34,154.19,154.05,21.29775222]
[1723118974874,0.17,154.18,154.05,20.0]
[1723118975243,1.96206565,154.2,154.05,20.0]
[1723118975766,0.34,154.2,154.06,45.0]
[1723118976070,0.34,154.2,154.07,20.0]
[1723118976651,0.34,154.2,154.07,21.29758011]
[1723118976974,1.96185772,154.2,154.07,20.0]
[1723118979141,0.34,154.2,154.07,20.0]
[1723118979376,1.96199021,154.2,154.05,20.0]
[1723118980767,0.34,154.2,154.05,21.2977523]
[1723118981150,1.96207306,154.2,154.05,20.0]
[1723118981470,1.96210911,154.2,154.05,20.0]
[1723118981845,1.96210911,154.2,154.04,12.33228335]
[1723118982066,0.34,154.2,154.05,1.29785394]
[1723118982460,0.34,154.2,154.04,12.33228335]
[1723118982461,1.96208279,154.2,154.04,12.33228335]
[1723118982668,8.44728279,154.2,154.04,12.33228335]
[1723118982981,45.0,154.19,154.04,12.33228335]
[1723118983272,1.96229394,154.18,154.05,20.0]
[1723118983676,28.33,154.15,154.05,20.0]
[1723118983869,0.34,154.14,154.05,20.0]
[1723118984479,45.34,154.14,154.05,20.0]
[1723118984675,45.34,154.14,154.06,1.29788475]
[1723118985047,28.33,154.17,154.06,1.29788475]
[1723118985249,0.34,154.16,154.06,1.29788475]
[1723118985473,28.33,154.17,154.06,1.29788475]
[1723118985675,28.33,154.17,154.06,46.29788475]
[1723118985853,28.33,154.17,154.07,20.0]
[1723118986049,28.33,154.19,154.07,48.33]
[1723118986267,28.33,154.21,154.08,46.63744042]
[1723118986473,28.33,154.21,154.09,20.0]
[1723118986671,29.9517344,154.21,154.09,20.0]
[1723118986882,1.6217344,154.2,154.09,20.0]
[1723118987187,1.6217344,154.2,154.07,28.33]
[1723118987188,28.33,154.19,154.08,20.0]
[1723118987477,0.34,154.18,154.08,20.0]
[1723118987654,45.34,154.18,154.06,20.0]
[1723118988258,45.34,154.18,154.07,1.29756983]
[1723118988464,45.34,154.18,154.06,21.29756983]
[1723118988672,28.33,154.17,154.06,20.0]
[1723118988974,28.33,154.15,154.06,20.0]
[1723118989267,45.17,154.14,154.05,20.0]
[1723118989472,0.34,154.14,154.05,20.0]
[1723118989669,1.96227133,154.14,154.05,20.0]
[1723118989989,28.33,154.13,154.03,31.1809]
[1723118990169,1.96251534,154.12,154.04,0.05508335]
[1723118990854,46.96251534,154.12,154.04,0.05508335]
[1723118991087,45.34,154.12,154.04,0.05508335]
[1723118991379,13.032,154.14,154.05,1.29787445]
[1723118991565,0.34,154.13,154.05,1.29787445]
[1723118992589,0.34,154.13,154.04,20.05508335]
[1723118993162,0.17,154.13,154.04,21.35296608]
[1723118993363,13.032,154.14,154.05,1.29788273]
[1723118993578,13.032,154.14,154.04,20.05508335]
[1723118993779,45.34,154.13,154.04,20.05508335]
[1723118993980,0.34,154.13,154.04,20.05508335]
[1723118994172,32.1598,154.15,154.05,1.29781633]
[1723118994375,0.34,154.14,154.05,1.29781633]
[1723118995276,32.1598,154.15,154.05,1.29781633]
[1723118995471,28.33,154.16,154.05,46.29781633]
[1723118995685,0.34,154.17,154.06,48.33]
[1723118995877,45.34,154.17,154.06,48.33]
[1723119000596,28.33,154.2,154.09,32.663]
[1723119000801,46.79178498,154.19,154.1,20.0]
[1723119001789,45.17,154.19,154.1,20.0]
[1723119002493,28.5,154.18,154.1,20.0]
[1723119002675,45.17,154.17,154.1,20.0]
[1723119002876,0.17,154.16,154.1,20.0]
[1723119003289,0.17,154.17,154.1,20.0]
[1723119003500,28.33,154.18,154.1,20.0]
[1723119003796,33.0827,154.23,154.1,20.0]
[1723119004006,28.33,154.21,154.1,20.0]
[1723119004600,28.33,154.19,154.1,20.0]
[1723119004979,1.62200265,154.18,154.1,20.0]
[1723119005180,28.33,154.17,154.1,20.0]
[1723119005498,0.34,154.16,154.1,20.0]
[1723119005900,28.33,154.14,154.07,12.4785]
[1723119006085,1.62239312,154.13,154.04,32.18518335]
[1723119006284,28.67,154.12,154.04,32.18518335]
[1723119007804,30.29254673,154.12,154.05,20.0]
[1723119008794,0.34,154.12,154.05,20.0]
[1723119009095,59.606,154.16,154.05,20.0]
[1723119009310,0.17,154.15,154.05,20.0]
[1723119009472,61.22825246,154.16,154.05,20.0]
[1723119009671,28.33,154.14,154.05,20.0]
[1723119010202,28.33,154.12,154.05,20.0]
[1723119010411,45.17,154.11,154.05,20.0]
[1723119010785,0.17,154.1,154.05,1.29808077]
[1723119010976,0.17,154.11,154.05,1.29808077]
[1723119011183,28.33,154.12,154.04,32.1301]
[1723119011399,28.33,154.1,154.04,32.1301]
[1723119011713,1.96280287,154.09,154.03,12.7194]
[1723119011929,46.96280287,154.09,154.0,30.4694]
[1723119012402,28.33,154.08,154.0,30.4694]
[1723119012592,45.34,154.07,154.0,30.4694]
[1723119012782,0.17,154.07,154.0,30.4694]
[1723119013202,0.17,154.08,154.0,30.4694]
[1723119013888,30.12295622,154.08,154.0,30.4694]
[1723119014093,45.0,154.07,154.0,30.4694]
[1723119014395,0.17,154.06,154.0,30.4694]
[1723119014704,0.17,154.06,154.01,20.0]
[1723119015577,45.0,154.07,154.01,20.0]
[1723119015782,28.5,154.08,154.01,20.0]
[1723119015982,0.34,154.07,154.01,20.0]
[1723119016411,45.34,154.07,154.01,20.0]
[1723119016611,45.34,154.07,154.0,20.0]
[1723119017102,28.33,154.06,153.99,10.1654234]
[1723119017293,45.34,154.05,153.99,10.1654234]
[1723119017498,28.33,154.04,153.99,10.1654234]
[1723119017692,28.33,154.04,153.96,0.04710195]
[1723119017693,73.33,154.04,153.96,1.34597522]
[1723119017893,0.34,154.05,153.96,1.34597522]
[1723119018210,28.33,154.06,153.96,1.34597522]
[1723119018393,28.33,154.08,153.98,12.8416]
[1723119018802,28.33,154.06,153.98,12.8416]
[1723119019187,28.33,154.06,153.99,20.0]
[1723119019385,28.33,154.06,153.97,0.03173744]
[1723119019705,30.0,154.03,153.97,0.03173744]
[1723119022092,30.0,154.03,153.94,32.8761]
[1723119022288,30.0,154.03,153.94,12.8761]
[1723119022610,28.33,154.04,153.95,1.29872305]
[1723119022820,28.33,154.06,153.94,12.8761]
[1723119023728,28.33,154.06,153.95,20.17]
[1723119023894,28.33,154.06,153.95,20.0]
[1723119024093,0.17,154.05,153.95,20.0]
[1723119024317,28.33,154.04,153.95,20.0]
[1723119024519,0.17,154.03,153.95,20.0]
[1723119025002,0.34,154.03,153.94,12.8761]
[1723119026309,0.34,154.03,153.95,20.0]
[1723119027616,0.34,154.03,153.96,1.29876796]
[1723119027805,45.34,154.03,153.95,20.0]
[1723119029929,383.2,154.2,154.0,13.0337]
[1723119029930,28.33,154.11,154.0,13.0337]
[1723119030133,28.33,154.13,154.01,66.46800039]
[1723119030300,28.33,154.11,154.01,20.0]
[1723119030724,28.33,154.09,154.01,20.0]
[1723119031032,28.33,154.07,154.01,20.0]
[1723119033303,28.33,154.09,154.02,1.29835312]
[1723119033505,28.33,154.11,154.01,20.0]
[1723119033710,28.33,154.13,154.03,30.5404]
[1723119033925,28.33,154.13,154.04,20.0]
[1723119035306,28.33,154.13,154.05,1.29798179]
[1723119035710,28.33,154.15,154.04,20.0]
[1723119036529,28.33,154.13,154.04,20.0]
[1723119037130,28.33,154.11,154.04,20.0]
[1723119038319,28.33,154.09,154.03,30.5404]
[1723119038521,0.17,154.08,154.03,30.5404]
[1723119038727,0.17,154.08,154.0,13.0337]
[1723119038728,28.33,154.07,154.0,13.0337]
[1723119038929,0.34,154.06,154.0,13.0337]
[1723119039123,45.34,154.06,154.0,13.0337]
[1723119040429,28.33,154.07,154.0,13.0337]
[1723119040605,28.33,154.09,154.0,13.0337]
[1723119041008,28.33,154.09,154.01,1.29821347]
[1723119041206,28.33,154.09,154.0,33.0337]
[1723119041409,0.17,154.08,154.01,20.0]
[1723119041910,28.33,154.09,154.01,20.0]
[1723119042520,1.62286622,154.08,154.01,20.0]
[1723119042728,28.33,154.07,154.01,20.0]
[1723119043223,0.17,154.08,154.01,20.0]
[1723119044410,0.34,154.08,154.01,20.0]
[1723119044606,28.33,154.09,154.02,1.14639096]
[1723119044830,28.33,154.11,154.02,1.14639095]
[1723119045412,28.33,154.13,154.02,1.14639095]
[1723119046338,33.0958,154.19,154.03,31.0345]
[1723119046520,28.33,154.16,154.05,12.6463]
[1723119046725,28.33,154.16,154.06,20.0]
[1723119047530,1.62228684,154.15,154.06,20.0]
[1723119048034,28.33,154.16,154.06,20.0]
[1723119048341,45.17,154.15,154.06,20.0]
[1723119048727,0.17,154.15,154.06,21.29766072]
[1723119048931,28.33,154.18,154.07,33.0156]
[1723119049243,28.33,154.18,154.08,20.0]
[1723119050215,45.17,154.17,154.08,20.0]
[1723119050415,0.17,154.16,154.08,20.0]
[1723119050640,28.5,154.16,154.08,20.0]
[1723119051937,28.33,154.2,154.09,13.0537]
[1723119052144,45.34,154.19,154.1,21.29742467]
[1723119052313,28.33,154.2,154.1,21.29742467]
[1723119052741,28.33,154.2,154.1,20.0]
[1723119053118,28.33,154.18,154.1,20.0]
[1723119053930,28.33,154.14,154.09,13.0537]
[1723119054131,28.33,154.14,154.07,33.0156]
[1723119054344,0.34,154.13,154.07,33.0156]
[1723119055410,0.34,154.13,154.08,20.0]
[1723119056245,45.34,154.13,154.08,20.0]
[1723119056716,28.33,154.12,154.08,20.0]
[1723119056937,28.33,154.1,154.05,13.3259]
[1723119057332,0.17,154.09,154.05,13.3259]
[1723119057528,28.33,154.08,154.03,32.8704]
[1723119057843,45.0,154.13,154.03,32.8704]
[1723119057844,28.33,154.1,154.03,32.8704]
[1723119058418,28.33,154.12,154.03,32.8704]
[1723119058843,0.17,154.11,154.04,20.0]
[1723119059021,1.79241162,154.11,154.04,20.0]
[1723119059345,1.62263,154.1,154.04,20.0]
[1723119060218,1.79253082,154.11,154.04,20.0]
[1723119060420,0.17,154.11,154.04,20.0]
[1723119061127,28.33,154.14,154.05,1.29802252]
[1723119061326,28.33,154.16,154.05,1.29802252]
[1723119061547,28.33,154.18,154.06,12.1408]
[1723119061753,28.33,154.18,154.07,20.0]
[1723119062049,28.33,154.18,154.08,34.19024126]
[1723119062354,28.33,154.18,154.09,20.0]
[1723119063346,28.33,154.2,154.1,1.29747942]
[1723119063522,267.1829,154.25,154.1,1.29747942]
[1723119063523,28.33,154.22,154.1,1.29747942]
[1723119063723,28.33,154.22,154.09,20.0]
[1723119063939,28.33,154.22,154.11,13.1967]
[1723119064224,28.33,154.24,154.12,51.6659952]
[1723119064464,28.33,154.24,154.13,12.4414]
[1723119064729,28.33,154.24,154.14,21.29709641]
[1723119065049,28.33,154.24,154.15,1.2970504]
[1723119065253,28.33,154.26,154.15,1.2970504]
[1723119065829,45.1576,154.3,154.14,20.0]
[1723119065830,28.33,154.24,154.14,20.0]
[1723119066021,1.62134803,154.23,154.14,20.0]
[1723119067054,28.33,154.24,154.14,20.0]
[1723119067055,28.33,154.2,154.14,20.0]
[1723119067239,28.33,154.18,154.14,20.0]
[1723119067433,0.34,154.17,154.14,20.0]
[1723119067750,1.6219021,154.23,154.13,12.4414]
[1723119067921,45.74934093,154.29,154.13,12.4414]
[1723119067922,28.33,154.21,154.13,12.4414]
[1723119068127,45.0,154.2,154.13,12.4414]
[1723119068325,28.67,154.19,154.13,12.4414]
[1723119068627,28.33,154.17,154.12,30.3689]
[1723119068845,0.34,154.16,154.12,30.3689]
[1723119069027,0.34,154.16,154.09,13.1513]
[1723119069028,28.33,154.15,154.09,13.1513]
[1723119069234,28.33,154.13,154.08,30.4596]
[1723119069441,45.14,154.12,154.08,30.4596]
[1723119069655,28.5,154.13,154.08,30.4596]
[1723119069846,45.17,154.14,154.08,30.4596]
[1723119071725,0.17,154.13,154.08,30.4596]
[1723119072852,45.17,154.14,154.08,30.4596]
[1723119074478,1.7923819,154.13,154.08,30.4596]
[1723119074757,0.17,154.12,154.04,13.2262]
[1723119074960,0.17,154.12,154.05,20.0]
[1723119078333,0.17,154.12,154.03,32.3258]
[1723119078334,36.61,154.12,154.03,32.3258]
[1723119078532,46.79303097,154.11,154.04,20.0]
[1723119078759,0.17,154.1,154.0,13.1382]
[1723119079264,1.79303091,154.1,154.0,13.1382]
[1723119079485,0.17,154.09,154.0,13.1382]
[1723119079675,44.7831,154.14,154.01,1.29791888]
[1723119080047,44.7831,154.14,154.01,20.0]
[1723119080362,44.7831,154.14,154.02,1.29805655]
[1723119080562,36.44,154.18,154.03,33.1626]
[1723119080563,68.9119,154.18,154.03,33.1626]
[1723119080773,68.9119,154.18,154.04,20.17]